fUSD/lending_fUSD_20240916
["ID","MTS","AMOUNT","RATE_DAILY","PERIOD"]
[338291687,1726482152798,-5000.0,0.00031257,35]
[338291688,1726482152830,-4153.0,0.00031257,120]
[338291689,1726482152860,-194.0,0.00031257,30]
[338291690,1726482152891,-194.0,0.00031257,30]
[338291691,1726482152922,-194.0,0.00031257,30]
[338291692,1726482152953,-200.0,0.00031257,30]
[338291693,1726482152985,-188.0,0.00031257,30]
[338291694,1726482153018,-1000.0,0.00031257,120]
[338291695,1726482153050,-200.0,0.00031257,30]
[338291696,1726482153084,-188.0,0.00031257,30]
[338291697,1726482153119,-1093.83420521,0.00031257,60]
[338291698,1726482153152,-1000.0,0.00031257,30]
[338291699,1726482153186,-1000.0,0.00031257,30]
[338291700,1726482153220,-1000.0,0.00031257,30]
[338291701,1726482153254,-1000.0,0.00031257,30]
[338291702,1726482153291,-1000.0,0.00031257,30]
[338291703,1726482153327,-805.76177089,0.00031257,30]
[338291704,1726482153361,-1000.0,0.00031257,30]
[338291705,1726482153395,-1000.0,0.00031257,30]
[338291706,1726482153428,-1000.0,0.00031257,30]
[338291707,1726482153462,-1000.0,0.00031257,30]
[338291708,1726482153496,-402.929834,0.00031257,30]
[338291709,1726482153530,-3000.0,0.00031257,120]
[338291710,1726482153565,-929.0,0.00031257,30]
[338291711,1726482153601,-4646.0,0.00031257,30]
[338291712,1726482153636,-1006.95535418,0.00031257,120]
[338291713,1726482153671,-246.6326575,0.00031257,120]
[338291714,1726482153707,-1000.0,0.00031257,60]
[338291715,1726482153741,-4951.2582,0.00031257,30]
[338291716,1726482153776,-1048.62399696,0.00031257,120]
[338291717,1726482153809,-160.0,0.00031257,30]
[338291718,1726482153845,-646.0,0.00031257,30]
[338291719,1726482153878,-646.0,0.00031257,30]
[338291720,1726482153912,-265.0,0.00031257,30]
[338291721,1726482153945,-233.78522953,0.00031257,60]
[338291722,1726482153979,-801.96534159,0.00031257,120]
[338291723,1726482154012,-1195.0,0.00031257,120]
[338291724,1726482154043,-190251.73501006,0.00031257,60]
[338291725,1726482154075,-341.36106015,0.00031257,90]
[338291726,1726482154107,-490.44582275,0.00031257,30]
[338291727,1726482154139,-2072.06471258,0.00031257,120]
[338291728,1726482154171,-366.54717739,0.00031257,30]
[338291729,1726482154203,-532.20283761,0.00031257,60]
[338291730,1726482154234,-1540.07482511,0.00031257,30]
[338291731,1726482154266,-840.83204312,0.00031257,30]
[338291732,1726482154296,-1000.0,0.00031257,30]
[338291733,1726482154326,-960.58778501,0.00031257,120]
[338291734,1726482154356,-1931.07684093,0.00031257,30]
[338291735,1726482154386,-709.53947263,0.00031257,30]
[338291736,1726482154899,-307.11610004,0.00031257,30]
[338291737,1726482154932,-1608.86395462,0.00031257,30]
[338291738,1726482154962,-1258.5694895,0.00031257,30]
[338291739,1726482154992,-1500.24806395,0.00031257,120]
[338291740,1726482155020,-1951.99895358,0.00031257,120]
[338291741,1726482155048,-2027.22096181,0.00031257,30]
[338291742,1726482155076,-254.52917898,0.00031257,30]
[338291743,1726482155105,-831.66612851,0.00031257,120]
[338291744,1726482155134,-296.39545847,0.00031257,120]
[338291745,1726482155164,-721.97313461,0.00031257,120]
[338291746,1726482155192,-823.60424104,0.00031257,30]
[338291747,1726482155220,-1200.0,0.00031257,120]
[338291748,1726482155247,-831.48169503,0.00031257,30]
[338291749,1726482155275,-466.11048934,0.00031257,30]
[338291750,1726482155303,-217.74222533,0.00031257,120]
[338291751,1726482155330,-230.18001413,0.00031257,120]
[338291752,1726482155358,-895.6243598,0.00031257,30]
[338291753,1726482155385,-482.33850244,0.00031257,120]
[338291754,1726482155412,-53552.28354802,0.00031257,60]
[338291755,1726482155439,-200.45904424,0.00031257,30]
[338291756,1726482155466,-925.25880732,0.00031257,30]
[338291757,1726482155493,-727.64513377,0.00031257,120]
[338291758,1726482155520,-199.02615054,0.00031257,120]
[338291759,1726482155547,-1539.28475233,0.00031257,120]
[338291760,1726482155574,-1788.6021682,0.00031257,120]
[338291761,1726482155602,-156.35433294,0.00031257,120]
[338291762,1726482155628,-952.57058089,0.00031257,120]
[338291763,1726482155656,-529.84491111,0.00031257,120]
[338291764,1726482155683,-338.17917741,0.00031257,30]
[338291765,1726482155711,-1409.76618928,0.00031257,120]
[338291766,1726482155739,-171.07185408,0.00031257,120]
[338291767,1726482155767,-807.79510952,0.00031257,120]
[338291768,1726482155795,-627.69222063,0.00031257,120]
[338291769,1726482155826,-1145.72514078,0.00031257,120]
[338291770,1726482155861,-1799.8041561,0.00031257,120]
[338291771,1726482155891,-320.62815689,0.00031257,120]
[338291772,1726482155924,-1174.21483041,0.00031257,120]
[338291773,1726482155953,-1258.99182464,0.00031257,120]
[338291774,1726482155984,-1681.86339251,0.00031257,120]
[338291775,1726482156014,-255.41324329,0.00031257,120]
[338291776,1726482156044,-1494.15599439,0.00031257,120]
[338291777,1726482156074,-1033.76410759,0.00031257,120]
[338291778,1726482156102,-1104.27064671,0.00031257,120]
[338291779,1726482156131,-1657.07668321,0.00031257,120]
[338291780,1726482156172,-810.38175525,0.00031257,120]
[338291781,1726482156202,-356.39361568,0.00031257,30]
[338291782,1726482156231,-960.3861775,0.00031257,120]
[338291783,1726482156260,-910.43731674,0.00031257,120]
[338291784,1726482156287,-1227.38536017,0.00031257,120]
[338291785,1726482156315,-200.0,0.00031257,120]
[338291786,1726482156347,-869.85936521,0.00031257,120]
[338291787,1726482156374,-851.08003251,0.00031257,30]
[338291788,1726482156402,-538.65806555,0.00031257,120]
[338291789,1726482156430,-955.84895131,0.00031257,120]
[338291790,1726482156458,-187.08559635,0.00031257,120]
[338291791,1726482156486,-413.78948083,0.00031257,120]
[338291792,1726482156513,-196.00944807,0.00031257,30]
[338291793,1726482156542,-1227.39422698,0.00031257,120]
[338291794,1726482156570,-1942.86641861,0.00031257,120]
[338291795,1726482156600,-2135.80203292,0.00031257,30]
[338291796,1726482156630,-676.61366419,0.00031257,30]
[338291797,1726482156657,-1376.70089258,0.00031257,120]
[338291798,1726482156684,-723.76185755,0.00031257,30]
[338291799,1726482156712,-1432.38201367,0.00031257,120]
[338291800,1726482156739,-256.73382459,0.00031257,30]
[338291801,1726482156765,-395.35082291,0.00031257,30]
[338291802,1726482156793,-642.29132319,0.00031257,120]
[338291803,1726482156863,-289.7074492,0.00031257,31]
[338291804,1726482156891,-1701.59454444,0.00031257,30]
[338291805,1726482156920,-348.99371563,0.00031257,120]
[338291806,1726482156947,-4630.72264061,0.00031257,30]
[338291807,1726482156973,-11442.20222013,0.00031257,120]
[338291808,1726482157000,-1408.6387651,0.00031257,30]
[338291809,1726482157028,-236.71809737,0.00031257,120]
[338291810,1726482157056,-3169.78719733,0.00031257,120]
[338291811,1726482157084,-331.5003654,0.00031257,120]
[338291812,1726482157113,-1101.57574043,0.00031257,30]
[338291813,1726482157141,-1073.40039271,0.00031257,30]
[338291814,1726482157168,-1956.44067687,0.00031257,120]
[338291815,1726482157196,-646.68397226,0.00031257,120]
[338291816,1726482157224,-756.0,0.00031257,120]
[338291817,1726482157252,-290.61104582,0.00031257,30]
[338291818,1726482157278,-1070.34195083,0.00031257,120]
[338291819,1726482157304,-1377.8764918,0.00031257,120]
[338291820,1726482157331,-934.90323591,0.00031257,120]
[338291821,1726482157358,-266.0,0.00031257,30]
[338291822,1726482157385,-171.20690709,0.00031257,120]
[338291823,1726482157413,-1027.75923351,0.00031257,30]
[338291824,1726482157438,-201.26683882,0.00031257,120]
[338291825,1726482157464,-2003.73654484,0.00031257,120]
[338291826,1726482157494,-50000.0,0.00031257,31]
[338291827,1726482157524,-50000.0,0.00031257,32]
[338291828,1726482157553,-50000.0,0.00031257,33]
[338291829,1726482157581,-50000.0,0.00031257,34]
[338291830,1726482157612,-50000.0,0.00031257,35]
[338291831,1726482157638,-888.0,0.00031257,120]
[338291832,1726482157665,-2169.11099818,0.00031257,120]
[338291833,1726482157693,-156.131041,0.00031257,40]
[338291834,1726482157719,-156.131041,0.00031257,40]
[338291835,1726482157747,-3841.27,0.00031257,30]
[338291836,1726482157776,-3841.27,0.00031257,32]
[338291837,1726482157803,-3841.27,0.00031257,34]
[338291838,1726482157831,-3841.27,0.00031257,36]
[338291839,1726482157859,-3841.27,0.00031257,38]
[338291840,1726482157887,-3841.27,0.00031257,40]
[338291841,1726482157916,-3841.27,0.00031257,40]
[338291842,1726482157942,-3841.27,0.00031257,40]
[338291843,1726482157969,-3841.27,0.00031257,40]
[338291844,1726482157995,-3841.38097148,0.00031257,40]
[338291845,1726482158022,-1000.0,0.00031257,30]
[338291846,1726482158049,-1000.0,0.00031257,30]
[338291847,1726482158078,-1000.0,0.00031257,30]
[338291848,1726482158105,-1000.0,0.00031257,30]
[338291849,1726482158131,-1000.0,0.00031257,30]
[338291850,1726482158159,-1000.0,0.00031257,30]
[338291851,1726482158187,-1000.0,0.00031257,30]
[338291852,1726482158214,-1000.0,0.00031257,30]
[338291853,1726482158241,-1000.0,0.00031257,30]
[338291854,1726482158269,-1000.0,0.00031257,30]
[338291855,1726482158296,-1000.0,0.00031257,30]
[338291856,1726482158324,-1000.0,0.00031257,30]
[338291857,1726482158351,-1000.0,0.00031257,30]
[338291858,1726482158379,-1000.0,0.00031257,30]
[338291859,1726482158407,-1000.0,0.00031257,30]
[338291860,1726482158434,-1000.0,0.00031257,30]
[338291861,1726482158461,-1000.0,0.00031257,30]
[338291862,1726482158487,-1000.0,0.00031257,30]
[338291863,1726482158513,-1000.0,0.00031257,30]
[338291864,1726482158540,-1000.0,0.00031257,30]
[338291865,1726482158566,-1000.0,0.00031257,30]
[338291866,1726482158593,-1000.0,0.00031257,30]
[338291867,1726482158619,-1000.0,0.00031257,30]
[338291868,1726482158646,-1000.0,0.00031257,30]
[338291869,1726482158672,-1000.0,0.00031257,30]
[338291870,1726482158699,-1000.0,0.00031257,30]
[338291871,1726482158726,-1000.0,0.00031257,30]
[338291872,1726482158753,-1000.0,0.00031257,30]
[338291873,1726482158779,-1000.0,0.00031257,30]
[338291874,1726482158806,-1000.0,0.00031257,30]
[338291875,1726482158832,-150.0,0.00031257,30]
[338291876,1726482158866,-150.0,0.00031257,30]
[338291877,1726482158892,-150.0,0.00031257,30]
[338291878,1726482158918,-150.0,0.00031257,30]
[338291879,1726482158944,-150.0,0.00031257,30]
[338291880,1726482158971,-150.0,0.00031257,30]
[338291881,1726482158998,-218.169601,0.00031257,30]
[338291882,1726482159024,-150.0,0.00031257,30]
[338291883,1726482159050,-150.0,0.00031257,30]
[338291884,1726482159075,-288.510316,0.00031257,30]
[338291885,1726482159101,-238.512532,0.00031257,30]
[338291886,1726482159126,-150.0,0.00031257,30]
[338291887,1726482161567,-157.92,0.000149,31]
[338291888,1726482161600,-157.92,0.000149,31]
[338291889,1726482161634,-157.92,0.000149,31]
[338291890,1726482161665,-157.92,0.000149,31]
[338291891,1726482161699,-157.92,0.000149,31]
[338291892,1726482161742,-195.42989825,0.00015,30]
[338291893,1726482161772,-600.0,0.00015,30]
[338291894,1726482161802,-500.0,0.00015,30]
[338291895,1726482161832,-500.0,0.00015,30]
[338291896,1726482161862,-500.0,0.00015,30]
[338291897,1726482161891,-600.0,0.00015,30]
[338291898,1726482161922,-600.0,0.00015,30]
[338291899,1726482161950,-600.0,0.00015,30]
[338291900,1726482161980,-500.0,0.00015,30]
[338291901,1726482162009,-600.0,0.00015,30]
[338291902,1726482162038,-500.0,0.00015,30]
[338291903,1726482162068,-600.0,0.00015,30]
[338291904,1726482162097,-500.0,0.00015,30]
[338291905,1726482162129,-600.0,0.00015,30]
[338291906,1726482162158,-600.0,0.00015,30]
[338291907,1726482162186,-600.0,0.00015,30]
[338291908,1726482162215,-500.0,0.00015,30]
[338291909,1726482162243,-902.78333802,0.00015,30]
[338291910,1726482162270,-500.0,0.00015,30]
[338291911,1726482162298,-500.0,0.00015,30]
[338291912,1726482162325,-500.0,0.00015,30]
[338291913,1726482162358,-500.0,0.00015,30]
[338291914,1726482162398,-1000.0,0.00015,60]
[338291915,1726482162433,-600.0,0.0001513,30]
[338291916,1726482162460,-600.0,0.0001513,30]
[338291917,1726482162488,-500.0,0.0001513,30]
[338291918,1726482162515,-600.0,0.0001513,30]
[338291919,1726482162543,-600.0,0.0001513,30]
[338291920,1726482162571,-600.0,0.0001513,30]
[338291921,1726482162603,-600.0,0.0001513,30]
[338291922,1726482162632,-600.0,0.0001513,30]
[338291923,1726482162661,-600.0,0.0001513,30]
[338291924,1726482162689,-600.0,0.0001513,30]
[338291925,1726482162717,-600.0,0.0001513,30]
[338291926,1726482162745,-500.0,0.0001513,30]
[338291927,1726482162772,-600.0,0.0001513,30]
[338291928,1726482162798,-500.0,0.0001513,30]
[338291929,1726482162828,-600.0,0.0001513,30]
[338291930,1726482162855,-500.0,0.0001513,30]
[338291931,1726482162882,-600.0,0.0001513,30]
[338291932,1726482162909,-500.0,0.0001513,30]
[338291933,1726482162937,-600.0,0.0001513,30]
[338291934,1726482162966,-500.0,0.0001513,30]
[338291935,1726482162995,-500.0,0.0001513,30]
[338291936,1726482163024,-500.0,0.0001513,30]
[338291937,1726482163052,-500.0,0.0001513,30]
[338291938,1726482163080,-500.0,0.0001513,30]
[338291939,1726482163108,-500.0,0.0001513,30]
[338291940,1726482163136,-500.0,0.0001513,30]
[338291941,1726482163165,-500.0,0.0001513,30]
[338291942,1726482163192,-500.0,0.0001513,30]
[338291943,1726482163218,-500.0,0.0001513,30]
[338291944,1726482163247,-150.0,0.0001542,120]
[338291945,1726482163274,-150.0,0.00015479,120]
[338291946,1726482163302,-150.0,0.00015482,120]
[338291947,1726482163329,-150.0,0.0001575,120]
[338291948,1726482163356,-150.0,0.00015767,120]
[338291949,1726482163383,-150.0,0.00015833,120]
[338291950,1726482163410,-500.0,0.00016,120]
[338291951,1726482163437,-150.0,0.00016163,120]
[338291952,1726482163465,-150.0,0.00016334,120]
[338291953,1726482163497,-150.0,0.00016584,120]
[338291954,1726482163526,-261.45,0.00016658,30]
[338291955,1726482163554,-150.0,0.00016679,120]
[338291956,1726482163581,-150.0,0.00016681,120]
[338291957,1726482163611,-2300.0,0.00017,30]
[338291958,1726482163637,-500.0,0.00017,120]
[338291959,1726482163664,-150.0,0.00017019,120]
[338291960,1726482163691,-150.0,0.00017151,120]
[338291961,1726482163719,-150.0,0.00017413,120]
[338291962,1726482163746,-150.0,0.00017515,120]
[338291963,1726482163774,-150.0,0.0001761,120]
[338291964,1726482163802,-150.0,0.00017748,120]
[338291965,1726482163831,-150.0,0.00017795,120]
[338291966,1726482164194,-150.0,0.00017896,120]
[338291967,1726482164226,-150.0,0.00017938,120]
[338291968,1726482164257,-150.0,0.00017998,120]
[338291969,1726482164288,-1000.0,0.00018,30]
[338291970,1726482164318,-5027.74817,0.00018,30]
[338291971,1726482164348,-500.0,0.00018,120]
[338291972,1726482164379,-150.0,0.00018155,120]
[338291973,1726482164408,-150.0,0.00018253,120]
[338291974,1726482164437,-150.0,0.00018449,120]
[338291975,1726482164467,-150.0,0.00018841,120]
[338291976,1726482164494,-150.0,0.0001891,120]
[338291977,1726482164521,-1000.0,0.000191,30]
[338291978,1726482164558,-150.0,0.0001923,120]
[338291979,1726482164585,-150.0,0.00019262,120]
[338291980,1726482164613,-150.0,0.00019284,120]
[338291981,1726482164641,-150.0,0.00019354,120]
[338291982,1726482164669,-150.0,0.00019408,120]
[338291983,1726482164699,-157.92,0.000196,31]
[338291984,1726482164728,-157.92,0.000196,31]
[338291985,1726482164758,-157.92,0.000196,31]
[338291986,1726482164789,-157.92,0.000196,31]
[338291987,1726482164818,-1000.0,0.0002,30]
[338291988,1726482164851,-1000.0,0.0002,30]
[338291989,1726482164879,-4433.65,0.0002,45]
[338291990,1726482164907,-1000.0,0.0002,30]
[338291991,1726482164937,-1508.5701325,0.0002,30]
[338291992,1726482164966,-4843.97241275,0.0002,30]
[338291993,1726482164996,-200.0,0.0002,30]
[338291994,1726482165026,-4171.18316867,0.0002,30]
[338291995,1726482165054,-2110.0,0.0002,30]
[338291996,1726482165084,-500.0,0.0002,120]
[338291997,1726482165115,-2110.0,0.000205,30]
[338291998,1726482165144,-150.0,0.00020567,120]
[338291999,1726482165173,-150.0,0.00020601,120]
[338292000,1726482165203,-150.0,0.00020888,120]
[338292001,1726482165232,-150.0,0.00020943,120]
[338292002,1726482165262,-200.0,0.00021,30]
[338292003,1726482165290,-2110.0,0.00021,30]
[338292004,1726482165320,-150.0,0.00021226,120]
[338292005,1726482165347,-2110.0,0.000215,30]
[338292006,1726482165376,-150.0,0.00021848,120]
[338292007,1726482165403,-10027.38280479,0.000219,30]
[338292008,1726482165439,-2110.0,0.00022,30]
[338292009,1726482165467,-150.0,0.00022375,120]
[338292010,1726482165495,-150.0,0.0002238,120]
[338292011,1726482165523,-2110.0,0.000225,30]
[338292012,1726482165553,-150.0,0.00022534,120]
[338292013,1726482165580,-150.0,0.00022612,120]
[338292014,1726482165612,-150.0,0.00022612,120]
[338292015,1726482165640,-150.0,0.00022666,120]
[338292016,1726482165667,-150.0,0.00022728,120]
[338292017,1726482165695,-200.0,0.00023,30]
[338292018,1726482165722,-2110.0,0.00023,30]
[338292019,1726482165750,-150.0,0.00023027,120]
[338292020,1726482165778,-150.0,0.00023393,120]
[338292021,1726482165806,-150.0,0.00023454,120]
[338292022,1726482165834,-2110.0,0.000235,30]
[338292023,1726482165866,-150.0,0.00023728,120]
[338292024,1726482165894,-150.0,0.00023967,120]
[338292025,1726482165925,-1000.0,0.00024,30]
[338292026,1726482165953,-2110.0,0.00024,30]
[338292027,1726482165981,-1000.0,0.00024,120]
[338292028,1726482166009,-150.0,0.000241,120]
[338292029,1726482166038,-150.0,0.00024159,120]
[338292030,1726482166070,-157.92,0.000242,31]
[338292031,1726482166111,-157.92,0.000242,31]
[338292032,1726482166142,-157.92,0.000242,31]
[338292033,1726482166173,-157.92,0.000242,31]
[338292034,1726482166203,-150.0,0.00024273,120]
[338292035,1726482166231,-150.0,0.00024367,120]
[338292036,1726482166259,-428.59,0.000245,30]
[338292037,1726482166337,-150.0,0.00024735,120]
[338292038,1726482166367,-500.0,0.00024828,120]
[338292039,1726482166395,-500.0,0.00024879,120]
[338292040,1726482166424,-150.0,0.00024901,120]
[338292041,1726482166450,-200.0,0.00024929,120]
[338292042,1726482166478,-2100.0,0.00025,30]
[338292043,1726482166505,-2000.0,0.00025,30]
[338292044,1726482166532,-300.0,0.00025,30]
[338292045,1726482166561,-200.0,0.00025,30]
[338292046,1726482166588,-300.0,0.00025,30]
[338292047,1726482166617,-486.2750548,0.00025,30]
[338292048,1726482166645,-200.0,0.00025,120]
[338292049,1726482166672,-1000.0,0.00025,120]
[338292050,1726482166700,-150.0,0.0002508,120]
[338292051,1726482166727,-500.0,0.00025144,120]
[338292052,1726482166754,-150.0,0.0002519,120]
[338292053,1726482166782,-150.0,0.00025234,120]
[338292054,1726482166809,-500.0,0.00025452,120]
[338292055,1726482166838,-500.0,0.0002546,120]
[338292056,1726482166870,-150.0,0.00025627,120]
[338292057,1726482166898,-150.0,0.00025656,120]
[338292058,1726482166928,-150.0,0.00025678,120]
[338292059,1726482166956,-500.0,0.00025777,120]
[338292060,1726482166984,-500.0,0.00025784,120]
[338292061,1726482167013,-150.0,0.00025873,120]
[338292062,1726482167042,-718.95616671,0.00026,30]
[338292063,1726482167070,-200.0,0.00026,30]
[338292064,1726482167098,-1000.0,0.00026,120]
[338292065,1726482167129,-500.0,0.00026052,120]
[338292066,1726482167159,-500.0,0.00026093,120]
[338292067,1726482167187,-1679.4218234,0.00026137,120]
[338292068,1726482167218,-150.0,0.00026344,120]
[338292069,1726482167246,-500.0,0.00026409,120]
[338292070,1726482167274,-500.0,0.00026652,120]
[338292071,1726482167301,-500.0,0.00026688,120]
[338292072,1726482167328,-200.0,0.000267,30]
[338292073,1726482167357,-500.0,0.00026725,120]
[338292074,1726482167385,-150.0,0.00026752,120]
[338292075,1726482167412,-200.0,0.00026755,120]
[338292076,1726482167439,-2096.66,0.00026849,30]
[338292077,1726482167467,-2096.66,0.00026849,30]
[338292078,1726482167493,-2096.66,0.00026849,30]
[338292079,1726482167520,-2096.66,0.00026849,30]
[338292080,1726482167547,-2096.66,0.00026849,30]
[338292081,1726482167573,-2096.66,0.00026849,30]
[338292082,1726482167600,-2096.66,0.00026849,30]
[338292083,1726482167627,-2096.66,0.00026849,30]
[338292084,1726482167653,-2096.66,0.00026849,30]
[338292085,1726482167679,-2096.66,0.00026849,30]
[338292086,1726482167706,-2096.66,0.00026849,30]
[338292087,1726482167733,-2096.66,0.00026849,30]
[338292088,1726482167761,-2096.66,0.00026849,30]
[338292089,1726482167789,-2096.66,0.00026849,30]
[338292090,1726482167816,-2096.66,0.00026849,30]
[338292091,1726482167845,-2096.66,0.00026849,30]
[338292092,1726482167873,-2096.66,0.00026849,30]
[338292093,1726482167902,-2096.66,0.00026849,30]
[338292094,1726482167929,-2096.66,0.00026849,30]
[338292095,1726482167955,-2096.66,0.00026849,30]
[338292096,1726482167982,-2096.66,0.00026849,30]
[338292097,1726482168011,-2096.66,0.00026849,30]
[338292098,1726482168038,-2096.66,0.00026849,30]
[338292099,1726482168066,-2096.78240521,0.00026849,30]
[338292100,1726482168094,-800.0,0.00026986,120]
[338292101,1726482168122,-800.0,0.00026986,120]
[338292102,1726482168150,-800.0,0.00026986,120]
[338292103,1726482168180,-7379.44563884,0.00027,56]
[338292104,1726482168208,-201.1291561,0.00027,120]
[338292105,1726482168236,-696.15527677,0.00027,120]
[338292106,1726482168264,-2000.00309333,0.00027,120]
[338292107,1726482168292,-867.35768047,0.00027,120]
[338292108,1726482168319,-1500.0,0.00027,120]
[338292109,1726482168347,-1000.0,0.00027,120]
[338292110,1726482168376,-500.0,0.00027042,120]
[338292111,1726482168404,-500.0,0.00027252,120]
[338292112,1726482168432,-150.0,0.0002728,120]
[338292113,1726482168460,-150.0,0.00027333,120]
[338292114,1726482168488,-500.0,0.00027358,120]
[338292115,1726482168516,-360.46102191,0.0002736,120]
[338292116,1726482168545,-150.0,0.00027362,120]
[338292117,1726482168572,-259.32605599,0.00027365,40]
[338292118,1726482168600,-295.20298127,0.0002739,30]
[338292119,1726482168630,-510.0,0.00027397,120]
[338292120,1726482168659,-2000.0,0.00027397,30]
[338292121,1726482168687,-2000.0,0.00027397,30]
[338292122,1726482168714,-2000.0,0.00027397,30]
[338292123,1726482168741,-2000.0,0.00027397,30]
[338292124,1726482168769,-2000.0,0.00027397,30]
[338292125,1726482168797,-2000.0,0.00027397,30]
[338292126,1726482168825,-2000.0,0.00027397,30]
[338292127,1726482168858,-2000.0,0.00027397,30]
[338292128,1726482168887,-2000.0,0.00027397,30]
[338292129,1726482168917,-2000.0,0.00027397,30]
[338292130,1726482168944,-2000.0,0.00027397,30]
[338292131,1726482168972,-2000.0,0.00027397,30]
[338292132,1726482169001,-2000.0,0.00027397,30]
[338292133,1726482169030,-2000.0,0.00027397,30]
[338292134,1726482169059,-2000.0,0.00027397,30]
[338292135,1726482169088,-2000.0,0.00027397,30]
[338292136,1726482169124,-2000.0,0.00027397,30]
[338292137,1726482169153,-2000.0,0.00027397,30]
[338292138,1726482169183,-2000.0,0.00027397,30]
[338292139,1726482169212,-1004.0346093,0.00027397,30]
[338292140,1726482169242,-945.21,0.00027397,120]
[338292141,1726482169270,-945.21,0.00027397,120]
[338292142,1726482169300,-945.21,0.00027397,120]
[338292143,1726482169484,-945.21,0.00027397,120]
[338292144,1726482169514,-945.21,0.00027397,120]
[338292145,1726482169543,-945.21,0.00027397,120]
[338292146,1726482169572,-945.21,0.00027397,120]
[338292147,1726482169600,-945.21,0.00027397,120]
[338292148,1726482169631,-945.21,0.00027397,120]
[338292149,1726482169660,-945.21,0.00027397,120]
[338292150,1726482169688,-945.21,0.00027397,120]
[338292151,1726482169716,-945.21,0.00027397,120]
[338292152,1726482169743,-945.21,0.00027397,120]
[338292153,1726482169771,-945.21,0.00027397,120]
[338292154,1726482169799,-945.21,0.00027397,120]
[338292155,1726482169828,-945.21,0.00027397,120]
[338292156,1726482169858,-945.21,0.00027397,120]
[338292157,1726482169907,-945.21,0.00027397,120]
[338292158,1726482169938,-945.21,0.00027397,120]
[338292159,1726482169969,-945.21,0.00027397,120]
[338292160,1726482169998,-945.21,0.00027397,120]
[338292161,1726482170028,-945.21,0.00027397,120]
[338292162,1726482170057,-945.21,0.00027397,120]
[338292163,1726482170086,-945.43522185,0.00027397,120]
[338292164,1726482170116,-200.0,0.00027397,60]
[338292165,1726482170150,-150.0,0.00027572,120]
[338292166,1726482170180,-500.0,0.00027593,120]
[338292167,1726482170210,-510.0,0.00027671,120]
[338292168,1726482170238,-221.919613,0.00027674,120]
[338292169,1726482170266,-150.0,0.00027735,120]
[338292170,1726482170295,-150.0,0.00027795,120]
[338292171,1726482170323,-150.0,0.00027831,120]
[338292172,1726482170351,-500.0,0.00027852,120]
[338292173,1726482170379,-510.0,0.00027945,120]
[338292174,1726482170406,-2695.89,0.00028,60]
[338292175,1726482170440,-2695.89,0.00028,60]
[338292176,1726482170470,-2695.89,0.00028,60]
[338292177,1726482170497,-2695.89,0.00028,60]
[338292178,1726482170526,-2695.89,0.00028,60]
[338292179,1726482170555,-2695.89,0.00028,60]
[338292180,1726482170585,-2695.89,0.00028,60]
[338292181,1726482170614,-2695.89,0.00028,60]
[338292182,1726482170642,-2695.89,0.00028,60]
[338292183,1726482170671,-2695.89,0.00028,60]
[338292184,1726482170700,-2695.89,0.00028,60]
[338292185,1726482170730,-2695.89,0.00028,60]
[338292186,1726482170760,-2695.89,0.00028,60]